Cogmind - Beta 13 @@@ ROGUE MODE // 2024.07.14 @ 16:50:30 Player: Beef Result: Destroyed by as-43362 with Assembled Rifle Performance ------------- Evolutions (0) 0 Regions Visited (2) 400 Robots Destroyed (7) 35 Value Destroyed (170) 170 Prototype IDs (0) 0 Alien Tech Used (0) 0 Bonus (0) 0 TOTAL SCORE: 605 Bonus ------- None Cogmind --------- Core Integrity 0/250 Matter 286/300 Energy 98/100 System Corruption 15% Temperature Cool (0) Movement Core (50) Location -10/Mines Parts ------- > --- POWER (1) -------- (None) > --- PROPULSION (2) --- (None) > --- UTILITY (2) ------ (None) > --- WEAPON (2) ------- Mining Claw > --- INVENTORY (5) ---- Ion Engine Heat Sink Small Storage Unit Peak State ------------ > --- POWER ------------ Ion Engine > --- PROPULSION ------- Aluminum Leg Aluminum Leg > --- UTILITY ---------- Small Storage Unit > --- WEAPON ----------- Light Assault Rifle Light Assault Rifle > --- INVENTORY -------- (None) [Rating: 6] Favorites ----------- Power Ion Engine Engine Ion Engine Propulsion Aluminum Leg Leg Aluminum Leg Flight Unit Flight Unit Utility Small Storage Unit Storage Small Storage Unit Weapon Light Assault Rifle Ballistic Gun Light Assault Rifle Slashing Weapon Mining Claw Build | -11 -10 -10 ------- Run | Yrd Mat Min Slots Evolved . | . . . Power . | . . . Propulsion . | . . . Utility . | . . . Weapon . | . . . Parts Attached 13 | 6 1 6 Power 2 | 1 . 1 Engine 2 | 1 . 1 Core . | . . . Reactor . | . . . Propulsion 5 | 2 1 2 Treads . | . . . Leg 4 | 2 1 1 Wheel . | . . . Hover . | . . . Flight 1 | . . 1 Utility 1 | 1 . . Device . | . . . Storage 1 | 1 . . Processor . | . . . Hackware . | . . . Protection . | . . . Artifact . | . . . Weapon 5 | 2 . 3 Energy Gun . | . . . Energy Cannon . | . . . Ballistic Gun 4 | 2 . 2 Ballistic Cannon . | . . . Launcher . | . . . Special Weapon . | . . . Impact Weapon . | . . . Slashing Weapon 1 | . . 1 Piercing Weapon . | . . . Special Melee Weapon . | . . . Unidentified Prototypes . | . . . Parts Lost 9 | . . 9 Power 2 | . . 2 Propulsion 3 | . . 3 Utility . | . . . Weapon 4 | . . 4 Highest Loss Streak 7 | . . 7 To Critical Strikes . | . . . Average Slot Usage (%) 72 | . 85 61 Engine 11 | . 14 9 Leg 22 | . 28 18 Storage 11 | . 14 9 Ballistic Gun 25 | . 28 22 Naked Turns 1 | . . 1 Heaviest Build 12 | 12 12 12 Greatest Support 20 | 20 20 20 Greatest Overweight (x) 2 | . . 2 Average Overweight (x) . | . . . Largest Inventory Capacity 8 | 8 8 8 Average Capacity 7 | 6 8 7 Most Carried 6 | . 5 6 Average Carried 2 | . 1 4 Final Capacity 8 | 8 8 5 Final Carried 5 | . 5 3 Class Distribution -------------------- 100% | Mutant Dominant Class ---------------- Mutant | -10/Materials Mutant | -10/Mines Resources | -11 -10 -10 ----------- Run | Yrd Mat Min Matter Collected 395 | 166 150 79 Remotely . | . . . Salvage Created 258 | . 188 70 Parts 12 | . 6 6 Haulers Intercepted . | . . . Recyclers Shooed . | . . . Parts Field Recycled . | . . . Retrieved Matter . | . . . Parts Self-Destructed . | . . . Prevented . | . . . Kills | -11 -10 -10 ------- Run | Yrd Mat Min Combat Hostiles Destroyed 8 | . 2 6 Melee 1 | . . 1 Guns 7 | . 2 5 Classes Destroyed 5 | . 2 3 Recycler 1 | . 1 . Swarmer 3 | . . 3 Grunt 2 | . 2 . Demolisher 1 | . . 1 Assembled 2 | . . 2 Best Kill Streak 3 | . 2 3 Combat Bots Only 3 | . 1 3 Max Kills in Single Turn 1 | . 1 1 Gunslinging . | . . . Exploded . | . . . Melee 1 | . . 1 Uniques/NPCs Destroyed . | . . . Combat | -11 -10 -10 -------- Run | Yrd Mat Min Hostile Shots Fired 72 | . 32 40 Missed 14 | . 7 7 Damage Taken 935 | . 315 620 Core 258 | . 71 187 Absorbed by Shields . | . . . Core Remaining (%) 100 | 100 . . Volleys Fired 48 | . 23 25 Largest 2 | . 2 2 Hottest 40 | . 40 40 Shots Fired 95 | . 46 49 Gun 95 | . 46 49 Cannon . | . . . Launcher . | . . . Special . | . . . Kinetic 95 | . 46 49 Thermal . | . . . Explosive . | . . . Electromagnetic . | . . . Robot Hit Streak 6 | . 6 5 Robot Miss Streak 4 | . 2 4 Penetration Max . | . . . Secondary Targets . | . . . Shots Hit Robots 55 | . 31 24 Core Hits 21 | . 8 13 Critical Kills . | . . . Critical Parts Destroyed 1 | . 1 . Critical Strikes 1 | . 1 . Destroy 1 | . 1 . Melee Attacks 1 | . . 1 Impact . | . . . Slashing 1 | . . 1 Piercing . | . . . Sneak Attacks . | . . . Combat Hostiles . | . . . Follow-up Attacks . | . . . Damage Inflicted 472 | . 254 218 Guns 435 | . 254 181 Cannons . | . . . Explosions . | . . . Melee 28 | . . 28 Ramming 9 | . . 9 Kinetic 435 | . 254 181 Thermal . | . . . Explosive . | . . . Electromagnetic . | . . . Impact . | . . . Slashing 28 | . . 28 Piercing . | . . . Highest Corruption 15 | . . 15 Average Corruption 13 | . . 13 Corruption Purged . | . . . Corruption Blocked . | . . . Effects 3 | . . 3 Matter Fused 1 | . . 1 Parts Rejected 1 | . . 1 Misfires 1 | . . 1 Overload Shots . | . . . Overflow Damage . | . . . Projectiles . | . . . Explosions . | . . . Melee . | . . . Knockbacks . | . . . Impact . | . . . Kinetic . | . . . Secondary . | . . . Self-Inflicted Damage 2 | . . 2 Shots . | . . . Rammed 1 | . . 1 Targets Rammed 2 | . . 2 Kicked 1 | . . 1 Crushed . | . . . Highest Temperature 60 | . 31 60 Average Temperature 19 | . 14 31 Received Heat Transfer 254 | . 174 80 Siege Activations . | . . . Robots Corrupted . | . . . Combat Hostiles . | . . . Parts Fried . | . . . Impact Corruptions . | . . . Robots Melted . | . . . Combat Hostiles . | . . . Parts Melted . | . . . Heat Transferred . | . . . Parts Sabotaged . | . . . Parts Stolen . | . . . Parts Stripped . | . . . Power Chain Reactions . | . . . Alert | -11 -10 -10 ------- Run | Yrd Mat Min Peak Influence 112 | . 70 112 Initial 27 | . . 27 Average 47 | . 40 69 Maximum Alert Level . | . . . Low Security (%) 100 | 100 100 100 Level 1 . | . . . Level 2 . | . . . Level 3 . | . . . Level 4 . | . . . Level 5 . | . . . High Security . | . . . Max Security . | . . . Squads Dispatched . | . . . Investigation . | . . . Extermination . | . . . Reinforcement . | . . . Assault . | . . . Garrison . | . . . Intercept . | . . . Searches Triggered . | . . . Construction Impeded . | . . . Haulers Reinforced . | . . . Active Scanning Responses . | . . . Cargo Convoy Interrupts . | . . . Stealth | -11 -10 -10 --------- Run | Yrd Mat Min Distress Signals . | . . . Communications Jammed . | . . . Distress Signals . | . . . Times Spotted 20 | . 2 18 Peak Tracking Total 9 | . 2 9 Tactical Retreats 3 | . . 3 Traps | -11 -10 -10 ------- Run | Yrd Mat Min Traps Triggered . | . . . Indirectly . | . . . Trap Hack Attempts . | . . . Triggered . | . . . Disarmed . | . . . Reprogrammed . | . . . Reused . | . . . Traps Extracted . | . . . Installed . | . . . Triggered . | . . . Machines | -11 -10 -10 ---------- Run | Yrd Mat Min Machines Disabled . | . . . Max in Single Turn . | . . . Machines Repaired . | . . . Machines Dismantled . | . . . Machines Sabotaged . | . . . Overloaded Fab Kills . | . . . Hacking | -11 -10 -10 --------- Run | Yrd Mat Min Machines Accessed . | . . . Terminals . | . . . Fabricators . | . . . Repair Stations . | . . . Recycling Units . | . . . Scanalyzers . | . . . Garrison Access . | . . . Total Hacks . | . . . Successful . | . . . Failed . | . . . Catastrophic . | . . . Database Lockouts . | . . . Manual . | . . . Terminals . | . . . Fabricators . | . . . Repair Stations . | . . . Recycling Units . | . . . Scanalyzers . | . . . Garrison Access . | . . . Terminal Hacks . | . . . Fabricator Hacks . | . . . Repair Station Hacks . | . . . Recycling Unit Hacks . | . . . Scanalyzer . | . . . Garrison Access Hacks . | . . . Unauthorized Hacks . | . . . Terminals . | . . . Fabricators . | . . . Repair Stations . | . . . Recycling Units . | . . . Scanalyzers . | . . . Garrison Access . | . . . Data Cores Recovered . | . . . Used . | . . . Hacking Detections . | . . . Full Trace Events . | . . . Feedback Events . | . . . Feedback Blocked . | . . . Robot Schematics Acquired . | . . . Robots Built . | . . . Authchips . | . . . Time . | . . . Total Robot Build Rating . | . . . Part Schematics Acquired . | . . . Parts Built . | . . . Authchips . | . . . Time . | . . . Total Part Build Rating . | . . . Parts Repaired . | . . . Time . | . . . Parts Recycled . | . . . Recycled Matter . | . . . Retrieved Matter . | . . . Retrieved Components . | . . . Parts Scanalyzed . | . . . Part Schematics Acquired . | . . . Parts Damaged . | . . . Bothacking | -11 -10 -10 ------------ Run | Yrd Mat Min Used RIF Installer . | . . . Robots Hacked . | . . . Non-combat . | . . . Combat . | . . . Robot Hacks Applied . | . . . Relay Couplers Released . | . . . Fabnet Peak Effective % . | . . . Robots Rewired . | . . . Allies Hacked . | . . . Hacks Repelled . | . . . Allies | -11 -10 -10 -------- Run | Yrd Mat Min Total Allies . | . . . Largest Group . | . . . Highest-Rated Group . | . . . Highest-Rated Ally . | . . . Total Orders . | . . . Ally Attacks . | . . . Total Damage . | . . . Kills . | . . . Allies Corrupted . | . . . Allies Melted . | . . . Intel | -11 -10 -10 ------- Run | Yrd Mat Min Robot Analysis Total . | . . . Derelict Logs Recovered 1 | . . 1 Drone Launches . | . . . Drone Recoveries . | . . . Exploration | -11 -10 -10 ------------- Run | Yrd Mat Min Turns Passed 394 | 59 151 184 Spaces Moved 259 | 46 72 141 Core 97 | 6 . 91 Treads . | . . . Legs 162 | 40 72 50 Wheels . | . . . Hover . | . . . Flight . | . . . Fastest Speed 50 | 50 120 50 Average Speed 94 | 110 120 75 Slowest Speed 150 | 120 120 150 Overloaded Moves . | . . . Propulsion Burnouts . | . . . Robots Hopped . | . . . Cave-ins Triggered . | . . . Exploration Rate (%) 18 | 3 13 39 Regions Visited 2 Branch Regions 1 Pre-discovered Areas . | . . . Known Exits Taken . | . . . Unknown Exits Taken 2 | 1 1 . Scrap Searched 1 | . . 1 Spaces Dug . | . . . Terrain Destroyed . | . . . Melee . | . . . Projectile . | . . . AOE . | . . . Terrain Rammed . | . . . Walls Destroyed . | . . . Machines Disabled . | . . . Actions | -11 -10 -10 --------- Run | Yrd Mat Min Total 328 | 51 99 178 Wait . | . . . Move 257 | 45 71 141 Hop . | . . . Pick Up 6 | . 4 2 Fast Attach 7 | 6 . 1 Attach 5 | . . 5 Detach 1 | . . 1 Swap 1 | . 1 . Drop . | . . . Fire 48 | . 23 25 Melee 1 | . . 1 Ram 1 | . . 1 Kick 1 | . . 1 Crush . | . . . Escape Stasis . | . . . Rewire . | . . . Trap . | . . . Miscellaneous . | . . . Route ------- -11/Scrapyard -10/Materials -10/Mines History --------- Turn | Location | Event 16 | -11/Scrapyard | Discovered new exit (range 15) 60 | -11/Scrapyard | Entered Materials 93 | -10/Materials | Discovered new exit (range 15) 211 | -10/Materials | Entered Mines 285 | -10/Mines | Assembled infested the area 305 | -10/Mines | Build established: Mutant 306 | -10/Mines | Core integrity fell below 50% 333 | -10/Mines | System corruption reached 10% 369 | -10/Mines | Lost 7 parts (2p3n2w) 380 | -10/Mines | Core integrity fell below 20% 395 | -10/Mines | Destroyed by as-43362 with Assembled Rifle Last Messages --------------- 00339_ Slammed into T-07 Excavator. 00352_ U-05 Engineer lays Concrete. 00355_ U-05 Engineer builds a Wall. 00356_ System corrupted: Matter fused (-8). 00369_ Searching scrap... 00369_ Found 30 Matter. 00369_ Found Sml. Matter Pod. 00369_ Found Lgt. Assault Rifle. 00369_ Found Weapon Shielding. 00369_ Found 31 Matter. 00370_ Acquired 11 matter. 00373_ Acquired Lgt. Assault Rifle. 00377_ System corrupted: FCS attempts to trigger Lgt. Assault Rifle. 00377_ System corrupted: Lgt. Assault Rifle misfires. 00379_ Lgt. Assault Rifle destroyed. 00382_ The unstable cave ceiling collapses. 00384_ D-53 Grenadier destroyed. 00387_ Acquired derelict log, extracted data. Data stored: Mines entrances (x2). 00389_ The unstable cave ceiling collapses. Map ----- +----------------------------------------------------+ | ???# ??????# #????## ## ###### """" ???? | | ???# ??????# #?????## ###?###??????????????? | | ???? ##????# #####??# #????????????????????? | | ?????# ##??## ## #### #????????????????????? | | ??????# #### * ###########??????????? | | ??????# ## ####%%* % #??????????? | | ??????# #??########## #??????????? | | ???????# #???????????# #??????????? | | ??###??## #???????????# #??????????? | | ## #??## ## ##???????????# #??????????? | | #?## #######????????????# #??????????? | | # ## #??????????????????# ??????????? | | # ## #??????????????????# ??????????? | | ?# #### ##?????####????????# ?????????? | | ?##### #??# #????? ?#??????# ?????????? | | ?????# ##?# ### #### #?????? !%|##????????? | | ?????## ## aa # ?????? =##?????????? | | ??????# %??????? #??????????? | | ?????## # # ??????? #??????????? | | ?????# " #?? #??????? #??????????? | | ?????# "%" ## ???????? ???????????? | | ####### #### #?### # ???????? ???????????? | | ##???##?????# #???????? #???????????? | | ##???????????# #??????????????????????? | | #### ######????????????# #??????????????????????? | | ???# #?????????????????# @#??????????????????????? | | ???# #?????????????##### ##?????????????????????? | | ???# #?????????????# ##????????????????????? | | ???# #?????????????# #????????????????????? | | ???# #????????????## # ##????????????????????? | | ???# #????????????# # #????????????????????? | | ???# #????????????### #????????????????????? | | ???# ############### #????????????????????? | | ???# ##????????????????????? | | ???################# #?????????????????????? | | ???????????????????## # ##?????????????????????? | | ????????????????????#### ##??????????????????????? | | ????????????????????????#????????????????????????? | | | | | | | | | | | | | | | | | | | | | | | | | +----------------------------------------------------+ Best States ------------- Heat Dissipation 25 Energy Generation 10 Energy Capacity 250 Matter Stores 300 Matter Capacity 300 Sight Range 16 Terrain Scan Density 10 Evasion (%) 55 Item Schematics ----------------- None Robot Schematics ------------------ None Fabricated ------------ Nothing Alien Tech Used ----------------- None Achievements -------------- None Challenges ------------ None Game ------ Seed MicrowarpCommCycler Manual? 0 Play Time 00:04:11 Cumulative 51.0 hours Start 2024.07.14 @ 16:48:00 End 2024.07.14 @ 16:50:30 Sessions 1 Manual Loads 0 Difficulty Rogue Special Mode None Game No. 53 Rogue 53 Adventurer 0 Explorer 0 Win Type - Total 0 Types 0/0/0/0/0/0/0/0/0 Lore% 42 Gallery% 48 Achievement% 34 Wizard Run 0 Options --------- Layout 0 ASCII 0 Keyboard 1 Movement Numpad Keybinds 0 Fullscreen 2 Font 18/SmallcapsGlow Map View 76x50 Zoom Use 0% Tactical HUD 1 Map Filters NONE Filters NONE Steam 1 RUN: 55b8ac7d-fe85-48e0-b293-ace4187d1052